bitfinex/quotes_BTCUSD_20250324
["timestamp","ask_amount","ask_price","bid_price","bid_amount"]
[1742826365932,0.011285,88608.0,88589.0,0.4179]
[1742826365933,0.02340623,88622.0,88601.0,0.00212353]
[1742826366136,0.02340623,88622.0,88621.0,0.22568]
[1742826366343,0.02340623,88622.0,88615.0,0.225693]
[1742826366519,0.011283,88627.0,88620.0,0.22568]
[1742826366757,0.02371984,88622.0,88621.0,0.548164]
[1742826366968,0.011283,88622.0,88621.0,1.09466]
[1742826367189,0.02427407,88622.0,88621.0,1.09466]
[1742826367392,0.236937,88631.0,88621.0,1.09466]
[1742826367596,0.225657,88630.0,88621.0,1.09466]
[1742826367799,0.001,88627.0,88622.0,0.225677]
[1742826368011,0.22567,88625.0,88621.0,1.09466]
[1742826368236,0.225677,88622.0,88621.0,1.09466]
[1742826368470,0.011283,88625.0,88621.0,1.09466]
[1742826368670,0.225675,88624.0,88621.0,1.09466]
[1742826369081,0.225675,88623.0,88621.0,1.09466]
[1742826369227,0.011283,88622.0,88621.0,0.95478]
[1742826369404,0.236958,88623.0,88622.0,0.13972]
[1742826370424,0.23696,88622.0,88621.0,0.95478]
[1742826370851,0.23696,88622.0,88621.0,1.0943]
[1742826371048,0.23696,88622.0,88621.0,0.95478]
[1742826371255,0.65121764,88622.0,88621.0,0.67636]
[1742826371603,0.76547528,88622.0,88621.0,0.67636]
[1742826371803,0.236993,88610.0,88609.0,0.4179]
[1742826371924,0.23699,88611.0,88609.0,0.95478]
[1742826372123,0.236993,88610.0,88609.0,0.95478]
[1742826372588,0.011285,88613.0,88609.0,0.95478]
[1742826372791,0.011283,88624.0,88610.0,0.0796]
[1742826372961,0.011283,88624.0,88611.0,0.13956]
[1742826372962,0.225688,88618.0,88611.0,0.13956]
[1742826373166,0.225697,88615.0,88611.0,0.13956]
[1742826373369,0.225699,88614.0,88611.0,0.13956]
[1742826373547,0.225696,88615.0,88611.0,0.13956]
[1742826373751,0.225685,88619.0,88611.0,0.13956]
[1742826373950,0.011284,88620.0,88615.0,0.225694]
[1742826374150,0.011283,88624.0,88612.0,0.011285]
[1742826374353,0.011283,88623.0,88615.0,0.225695]
[1742826374556,0.011283,88624.0,88617.0,0.225689]
[1742826374785,0.03441436,88627.0,88613.0,0.011285]
[1742826374984,0.23695,88626.0,88620.0,0.225681]
[1742826375182,0.225674,88624.0,88620.0,0.225681]
[1742826375388,0.02398149,88631.0,88620.0,0.4179]
[1742826375592,0.225666,88627.0,88622.0,0.225677]
[1742826376081,0.22568,88621.0,88620.0,0.4179]
[1742826376279,0.35122164,88621.0,88620.0,0.4179]
[1742826376946,0.225677,88623.0,88620.0,0.4179]
[1742826377130,0.22568,88621.0,88620.0,0.4179]
[1742826377366,0.236964,88621.0,88620.0,0.4179]
[1742826377994,0.42536584,88621.0,88620.0,0.4179]
[1742826378176,0.35422164,88621.0,88620.0,0.55698]
[1742826378588,0.35422164,88621.0,88603.0,0.4179]
[1742826378589,0.236993,88610.0,88603.0,0.4179]
[1742826378824,0.236993,88610.0,88609.0,0.6760901]
[1742826379001,0.236993,88610.0,88609.0,0.5370501]
[1742826379145,0.236993,88610.0,88609.0,0.6760501]
[1742826379347,0.35125064,88610.0,88609.0,0.6760501]
[1742826379563,0.42980767,88610.0,88609.0,0.6760501]
[1742826379798,0.65125064,88610.0,88609.0,0.6760501]
[1742826380206,0.65125064,88610.0,88609.0,0.5370501]
[1742826380404,0.65125064,88610.0,88609.0,0.6759301]
[1742826381046,0.65125064,88610.0,88609.0,0.6758501]
[1742826381449,0.65951391,88610.0,88609.0,0.5370501]
[1742826381653,0.65951391,88610.0,88560.0,0.451669]
[1742826381654,0.011286,88601.0,88588.0,0.00017]
[1742826381866,0.65127464,88601.0,88600.0,0.537]
[1742826382507,0.41425764,88601.0,88600.0,0.537]
[1742826382707,0.65127464,88601.0,88600.0,0.537]
[1742826383174,0.72331769,88601.0,88600.0,0.67568]
[1742826383404,0.65127464,88601.0,88600.0,0.67568]
[1742826384336,0.65127464,88601.0,88600.0,0.537]
[1742826384539,0.65127464,88601.0,88600.0,0.67564]
[1742826385507,0.65227464,88601.0,88600.0,0.67564]
[1742826385704,0.76653228,88601.0,88600.0,0.67564]
[1742826385906,0.78943396,88601.0,88600.0,0.67564]
[1742826386511,0.537046,88590.0,88589.0,0.4179]
[1742826386743,0.65130364,88590.0,88589.0,0.95494]
[1742826387137,0.65130364,88590.0,88589.0,0.53704]
[1742826387353,0.76556128,88590.0,88589.0,0.53704]
[1742826387591,0.76556128,88590.0,88589.0,0.67548]
[1742826387797,0.52851528,88590.0,88574.0,0.4179]
[1742826387971,0.52851528,88590.0,88565.0,0.225992]
[1742826387972,0.537076,88579.0,88565.0,0.00017]
[1742826388173,0.237094,88572.0,88571.0,0.53908]
[1742826388371,0.65135164,88572.0,88571.0,0.67744]
[1742826388579,0.65135164,88572.0,88571.0,0.67544]
[1742826388995,0.65135164,88572.0,88571.0,0.53708]
[1742826389377,0.237121,88562.0,88561.0,0.53725]
[1742826389599,0.35137864,88562.0,88561.0,0.67549]
[1742826390268,0.34637864,88562.0,88561.0,0.53725]
[1742826390418,0.34637864,88562.0,88561.0,0.67541]
[1742826390628,0.64637864,88562.0,88561.0,0.67545]
[1742826391609,0.64737864,88562.0,88561.0,0.67545]
[1742826391756,0.64937864,88562.0,88561.0,0.67545]
[1742826391956,0.76363628,88562.0,88561.0,0.67545]
[1742826392163,0.64937864,88562.0,88561.0,0.53725]
[1742826392363,0.64937864,88562.0,88561.0,0.67525]
[1742826392565,0.64937864,88562.0,88561.0,0.67517]
[1742826392766,0.64937864,88562.0,88561.0,0.53725]
[1742826392968,0.76363628,88562.0,88561.0,0.67517]
[1742826393211,0.76363628,88562.0,88561.0,0.67509]
[1742826393541,0.64937864,88562.0,88561.0,0.67509]
[1742826393783,0.67250599,88562.0,88561.0,0.67509]
[1742826394185,0.67250599,88562.0,88561.0,0.53725]
[1742826394363,0.67250599,88562.0,88561.0,0.67501]
[1742826396115,0.55824835,88562.0,88561.0,0.67501]
[1742826396746,0.55824835,88562.0,88561.0,0.53725]
[1742826396948,0.78676363,88562.0,88561.0,0.67477]
[1742826398182,0.67250599,88562.0,88561.0,0.67477]
[1742826399200,0.67250599,88562.0,88561.0,0.67473]
[1742826400634,0.67250599,88562.0,88551.0,0.4179]
[1742826400635,0.237147,88552.0,88551.0,0.4179]
[1742826400839,0.237147,88552.0,88551.0,0.95522]
[1742826401065,0.65140464,88552.0,88551.0,0.53732]
[1742826401871,0.65140464,88552.0,88551.0,0.67521213]
[1742826402087,0.65140464,88552.0,88551.0,0.67621213]
[1742826402286,0.225855,88552.0,88551.0,0.67621213]
[1742826402516,0.237147,88552.0,88551.0,0.67621213]
[1742826402760,0.01129,88570.0,88552.0,0.089392]
[1742826402960,0.225826,88564.0,88561.0,0.225833]
[1742826403170,0.03475875,88562.0,88553.0,0.225853]
[1742826403377,0.011291,88559.0,88556.0,0.225845]
[1742826403595,0.225835,88560.0,88556.0,0.225845]
[1742826403821,0.225835,88560.0,88552.0,0.0781]
[1742826403822,0.225853,88553.0,88552.0,0.0781]
[1742826404442,0.237147,88552.0,88551.0,1.09311213]
[1742826404962,0.237147,88552.0,88551.0,1.09395213]
[1742826405210,0.237147,88552.0,88551.0,1.09391213]
[1742826405541,0.35140464,88552.0,88551.0,0.93559003]
[1742826405754,0.4351033,88552.0,88551.0,0.93559003]
[1742826405957,0.35140464,88552.0,88551.0,0.93559003]
[1742826406171,0.35140464,88552.0,88551.0,0.53836]
[1742826406421,0.65140464,88552.0,88551.0,0.67564]
[1742826406623,0.225855,88552.0,88551.0,0.67564]
[1742826406828,0.225871,88546.0,88542.0,0.225879]
[1742826407034,0.225874,88545.0,88543.0,0.53736]
[1742826407458,0.225876,88544.0,88543.0,0.53736]
[1742826407660,0.225874,88545.0,88543.0,0.53736]
[1742826407818,0.225874,88545.0,88544.0,0.13728]
[1742826408222,0.225876,88544.0,88543.0,0.53736]
[1742826408420,0.225874,88545.0,88543.0,0.67452]
[1742826408622,0.225876,88544.0,88543.0,0.67452]
[1742826408846,0.237169,88544.0,88543.0,0.67548]
[1742826409250,0.237167,88545.0,88544.0,0.001]
[1742826409657,0.237169,88544.0,88543.0,0.67548]
[1742826409866,0.237169,88544.0,88543.0,0.67748]
[1742826410039,0.237169,88544.0,88543.0,0.54036]
[1742826410263,0.35142664,88544.0,88543.0,0.67536]
[1742826410469,0.237169,88544.0,88543.0,0.67532]
[1742826410891,0.237169,88544.0,88543.0,0.67432]
[1742826411331,0.237169,88544.0,88543.0,0.6754]
[1742826412319,0.2831724,88544.0,88543.0,0.6754]
[1742826412475,0.237169,88544.0,88543.0,0.6754]
[1742826412684,0.237169,88544.0,88543.0,0.6774]
[1742826413085,0.237169,88544.0,88543.0,0.6775702]
[1742826413292,0.237169,88544.0,88543.0,0.6773702]
[1742826413731,0.02262508,88546.0,88543.0,0.6773702]
[1742826413935,0.225876,88544.0,88543.0,0.6773702]
[1742826414139,0.237169,88544.0,88543.0,0.6773702]
[1742826414564,0.25978908,88546.0,88543.0,0.6763702]
[1742826414765,0.225876,88544.0,88543.0,0.6763702]
[1742826415240,0.237169,88544.0,88543.0,0.6755702]
[1742826415387,0.237169,88544.0,88543.0,0.5385302]
[1742826415588,0.237169,88544.0,88543.0,0.6765702]
[1742826415792,0.237169,88544.0,88543.0,0.5395302]
[1742826415974,0.237169,88544.0,88543.0,0.6754902]
[1742826416180,0.237169,88544.0,88543.0,0.6744502]
[1742826416515,0.24849608,88546.0,88543.0,0.6764502]
[1742826416682,0.02262508,88546.0,88544.0,0.225876]
[1742826416876,0.24849808,88546.0,88543.0,0.9023282]
[1742826417087,0.225876,88544.0,88543.0,0.6764502]
[1742826417289,0.237169,88544.0,88543.0,0.6764502]
[1742826417719,0.237169,88544.0,88543.0,0.6774502]
[1742826418347,0.237169,88544.0,88543.0,0.6754502]
[1742826418552,0.35142664,88544.0,88543.0,0.5385302]
[1742826418919,0.65142664,88544.0,88543.0,0.6753702]
[1742826419120,0.76568428,88544.0,88543.0,0.6753702]
[1742826419348,0.76568428,88544.0,88543.0,0.6773702]
[1742826419548,0.76568428,88544.0,88543.0,0.5405302]
[1742826419681,0.65142664,88544.0,88543.0,0.6775302]
[1742826419882,0.537169,88544.0,88543.0,0.6775302]
[1742826420275,0.65142664,88544.0,88543.0,0.6775302]
[1742826420478,0.65142664,88544.0,88543.0,0.5405302]
[1742826421080,0.65142664,88544.0,88543.0,0.6786102]
[1742826421297,0.75836922,88544.0,88543.0,0.6786102]
[1742826421531,0.75836922,88544.0,88531.0,0.4179]
[1742826421739,0.237178,88541.0,88540.0,0.53744]
[1742826421945,0.35143564,88541.0,88540.0,0.53744]
[1742826422786,0.31141632,88544.0,88540.0,0.67556]
[1742826423082,0.237178,88541.0,88540.0,0.67756]
[1742826423727,0.00012332,88544.0,88543.0,0.225878]
[1742826423900,0.00012332,88544.0,88543.0,0.3499445]
[1742826424096,0.23729232,88544.0,88543.0,0.3499445]
[1742826424365,0.35154996,88544.0,88543.0,0.3499445]
[1742826425262,0.35154996,88544.0,88543.0,0.3501148]
[1742826425517,0.39587,88544.0,88543.0,0.3501148]
[1742826425652,0.35154996,88544.0,88543.0,0.3501148]
[1742826425859,0.35154996,88544.0,88543.0,0.3511148]
[1742826428127,0.00012332,88544.0,88543.0,0.6679858]
[1742826428302,0.00012332,88544.0,88543.0,0.6566928]
[1742826428694,0.00012332,88544.0,88543.0,0.6679858]
[1742826429048,0.00012332,88544.0,88543.0,0.7135858]
[1742826430460,0.0003406,88552.0,88551.0,0.23715]
[1742826430704,0.0003406,88552.0,88551.0,1.22286967]
[1742826430901,0.02394413,88572.0,88561.0,0.237124]
[1742826431102,0.02394413,88572.0,88561.0,0.49382249]
[1742826431441,0.011287,88597.0,88561.0,0.82821058]
[1742826431685,0.011288,88589.0,88561.0,0.96781058]
[1742826431893,0.02135565,88583.0,88561.0,0.96781058]
[1742826432098,0.225816,88568.0,88561.0,0.95330973]
[1742826432298,0.225808,88571.0,88561.0,0.95330973]
[1742826432450,0.01129,88569.0,88561.0,0.30192809]
[1742826432671,0.01129,88569.0,88561.0,0.2675]
[1742826432672,0.225825,88565.0,88561.0,0.2675]
[1742826432959,0.237116,88565.0,88561.0,0.2675]
[1742826433139,0.2374614,88562.0,88561.0,0.2675]
[1742826433344,0.0003404,88562.0,88561.0,0.2675]
[1742826433560,0.0116314,88562.0,88561.0,0.1396]
[1742826433781,0.0116314,88562.0,88561.0,0.47942118]
[1742826433990,0.0116314,88562.0,88561.0,0.48342118]
[1742826434202,0.225829,88563.0,88561.0,0.48342118]
[1742826434406,0.12554864,88562.0,88561.0,0.48342118]
[1742826434614,0.12554864,88562.0,88561.0,0.47942118]
[1742826434821,0.011291,88562.0,88561.0,0.48242118]
[1742826435444,0.011291,88562.0,88561.0,0.47942118]
[1742826435653,0.014291,88562.0,88561.0,0.47942118]
[1742826436500,0.003,88562.0,88561.0,0.47942118]
[1742826436743,0.014291,88562.0,88561.0,0.47942118]
[1742826437414,0.014291,88562.0,88561.0,0.47906118]
[1742826437864,0.014291,88562.0,88561.0,0.49035218]
[1742826437865,0.003,88562.0,88561.0,0.49035218]
[1742826438136,0.003,88562.0,88561.0,0.56965218]
[1742826438810,0.003,88562.0,88561.0,0.55836118]
[1742826439293,0.0003406,88562.0,88561.0,0.78419218]
[1742826439521,0.0043406,88562.0,88561.0,0.56965218]
[1742826440213,0.0023406,88562.0,88561.0,0.56965218]
[1742826440678,0.0003406,88562.0,88561.0,0.56965218]
[1742826441110,0.0023406,88562.0,88561.0,0.56965218]
[1742826441910,0.02208734,88577.0,88573.0,0.01129]
[1742826442055,0.22620489,88577.0,88574.0,0.52576058]
[1742826442257,0.00041289,88577.0,88575.0,0.237084]
[1742826442650,0.00041289,88577.0,88574.0,0.75155958]
[1742826443546,0.237086,88575.0,88574.0,0.33748058]
[1742826443752,0.237086,88575.0,88574.0,0.47616058]
[1742826443961,0.237086,88575.0,88574.0,0.33748058]
[1742826444168,0.237086,88575.0,88574.0,0.47628058]
[1742826444659,0.237086,88575.0,88562.0,0.33748058]
[1742826444660,0.237118,88563.0,88562.0,0.33748058]
[1742826444870,0.237118,88563.0,88562.0,0.47636058]
[1742826446201,0.35137564,88563.0,88562.0,0.33748058]
[1742826446417,0.237169,88544.0,88543.0,0.0001703]
[1742826446632,0.237169,88544.0,88543.0,0.5374503]
[1742826446820,0.237169,88544.0,88543.0,0.6762103]
[1742826447235,0.44516314,88544.0,88543.0,0.5374503]
[1742826447450,0.44516314,88544.0,88543.0,0.6762103]
[1742826447651,0.35142664,88544.0,88543.0,0.5374503]
[1742826448621,0.35442664,88544.0,88543.0,0.5374503]
[1742826449330,0.36309159,88544.0,88543.0,0.5374503]
[1742826450581,0.36309159,88544.0,88531.0,0.0001703]
[1742826450582,0.537202,88532.0,88531.0,0.0001703]
[1742826450864,5.65145964,88532.0,88531.0,3e-07]
[1742826451091,0.237223,88524.0,88523.0,0.53736]
[1742826451306,0.35148064,88524.0,88523.0,0.53736]
[1742826451527,0.237255,88512.0,88511.0,0.0152891]
[1742826451740,0.237255,88512.0,88511.0,0.1554891]
[1742826451741,0.35151264,88512.0,88511.0,0.1554891]
[1742826451983,0.35151264,88512.0,88500.0,0.1101701]
[1742826451984,0.537263,88509.0,88500.0,0.1101701]
[1742826452189,0.237285,88501.0,88500.0,0.1101701]
[1742826452399,0.34024364,88501.0,88500.0,0.1101701]
[1742826452610,0.35154264,88501.0,88500.0,0.2502901]
[1742826452818,0.11434612,88501.0,88500.0,0.2502901]
[1742826453243,0.12564512,88501.0,88500.0,0.2502901]
[1742826453444,0.12564512,88501.0,88481.0,0.14589745]
[1742826453445,0.237335,88482.0,88481.0,0.09979745]
[1742826453654,0.35159264,88482.0,88481.0,0.09979745]
[1742826454075,0.4459521,88482.0,88481.0,0.24007745]
[1742826454287,1.57602764,88482.0,88481.0,0.09979745]
[1742826454500,1.23866664,88482.0,88481.0,0.09979745]
[1742826454696,1.23866664,88482.0,88481.0,0.002]
[1742826454697,0.65159264,88482.0,88481.0,0.002]
[1742826455053,0.65359264,88482.0,88481.0,0.002]
[1742826455260,0.67293514,88482.0,88481.0,0.002]
[1742826455458,0.67093514,88482.0,88481.0,0.14296]
[1742826455904,0.6825372,88482.0,88481.0,0.002]
[1742826456084,0.4565032,88482.0,88481.0,0.14308]
[1742826456282,0.4565032,88482.0,88443.0,0.226132]
[1742826456283,0.011304,88463.0,88444.0,0.4179]
[1742826456498,0.237416,88452.0,88444.0,0.4179]
[1742826456702,0.226102,88456.0,88450.0,0.5376]
[1742826456911,0.011305,88452.0,88450.0,0.5376]
[1742826457484,0.12556264,88452.0,88450.0,0.5376]
[1742826457667,0.2093423,88452.0,88451.0,0.14349162]
[1742826457867,0.12556264,88452.0,88451.0,0.14349162]
[1742826458275,0.42656264,88452.0,88451.0,6.2e-07]
[1742826458791,0.12656264,88452.0,88451.0,0.00635844]
[1742826459240,0.57176264,88452.0,88451.0,0.14839844]
[1742826459439,0.59039464,88452.0,88451.0,0.14839844]
[1742826459664,0.66834614,88452.0,88451.0,0.00635844]
[1742826459865,0.66834614,88452.0,88451.0,0.14835844]
[1742826460103,0.011309,88425.0,88422.0,0.4179]
[1742826460305,0.237489,88425.0,88424.0,0.69288232]
[1742826460465,0.237489,88425.0,88424.0,0.55096232]
[1742826460669,0.29900909,88425.0,88424.0,0.55096232]
[1742826460931,0.237489,88425.0,88424.0,0.69268837]
[1742826461139,0.226177,88427.0,88424.0,0.69268837]
[1742826461299,0.35174664,88425.0,88424.0,0.69268837]
[1742826461519,0.3,88435.0,88424.0,0.69268837]
[1742826461712,0.11425764,88434.0,88424.0,0.77695037]
[1742826461885,0.11425764,88434.0,88425.0,0.14208]
[1742826462102,0.226162,88432.0,88425.0,0.14208]
[1742826462324,0.34042364,88431.0,88425.0,0.368259]
[1742826462513,0.3,88437.0,88425.0,0.14208]
[1742826462715,0.229156,88435.0,88429.0,0.226168]
[1742826462922,0.229156,88435.0,88430.0,0.226167]
[1742826462923,0.003,88435.0,88430.0,0.226167]
[1742826463124,0.003,88435.0,88425.0,0.153389]
[1742826463125,0.003,88435.0,88433.0,0.212157]
[1742826463983,0.226146,88439.0,88433.0,0.212157]
[1742826463984,0.0551759,88434.0,88433.0,0.212157]
[1742826464235,0.0551759,88434.0,88424.0,0.77695037]
[1742826464236,0.18074054,88434.0,88424.0,0.55076837]
[1742826464469,0.002,88431.0,88429.0,0.226167]
[1742826464669,0.002,88431.0,88430.0,0.011308]
[1742826464974,0.311305,88451.0,88435.0,0.011307]
[1742826465178,0.35168164,88450.0,88440.0,0.226142]
[1742826465403,0.3,88448.0,88445.0,0.226127]
[1742826465603,0.011304,88458.0,88446.0,0.1418]
[1742826465825,0.02222835,88452.0,88446.0,0.37923]
[1742826466024,0.02222835,88452.0,88446.0,0.1418]
[1742826466222,0.24833935,88452.0,88447.0,0.226121]
[1742826466540,0.226084,88463.0,88454.0,0.226103]
[1742826466744,0.04260636,88479.0,88477.0,0.226047]
[1742826466950,0.005,88502.0,88463.0,0.011304]
[1742826466951,0.237358,88474.0,88467.0,0.226065]
[1742826467184,0.011304,88460.0,88455.0,0.53792]
[1742826467388,0.226083,88463.0,88458.0,0.226094]
[1742826467593,0.526061,88472.0,88460.0,0.011304]
[1742826467798,0.005,88500.0,88456.0,0.14372]
[1742826467799,0.226066,88470.0,88458.0,0.01454085]
[1742826468000,0.237363,88472.0,88466.0,0.226073]
[1742826468199,0.237366,88471.0,88466.0,0.226073]
[1742826468402,0.02248857,88478.0,88467.0,0.4179]
[1742826468614,0.02248857,88478.0,88472.0,0.226059]
[1742826468782,0.02175513,88482.0,88481.0,0.226037]
[1742826468985,0.02175513,88482.0,88481.0,0.643937]
[1742826469187,0.02175513,88482.0,88481.0,0.4179]
[1742826469391,0.00241263,88482.0,88481.0,0.655238]
[1742826469746,0.00241263,88482.0,88481.0,0.65847785]
[1742826469959,0.00241263,88482.0,88481.0,0.66977885]
[1742826470796,0.00241263,88482.0,88481.0,0.91613649]
[1742826471004,0.00241263,88482.0,88481.0,0.55]
[1742826471005,0.00225416,88482.0,88481.0,0.55]
[1742826471211,0.00225416,88482.0,88481.0,0.69364]
[1742826471414,0.00225416,88482.0,88481.0,0.705101]
[1742826471635,0.00225416,88482.0,88481.0,0.6938]
[1742826472075,0.00225416,88482.0,88481.0,0.55]
[1742826472282,0.01355516,88482.0,88481.0,0.61078]
[1742826472482,0.00225416,88482.0,88481.0,0.4671]
[1742826472692,0.00225416,88482.0,88481.0,0.61074]
[1742826473324,0.01355516,88482.0,88481.0,0.4671]
[1742826473527,0.00225416,88482.0,88481.0,0.61058]
[1742826473939,0.00225416,88482.0,88481.0,0.621881]
[1742826474521,0.00325416,88482.0,88481.0,0.621881]
[1742826475997,0.00359416,88482.0,88481.0,0.621881]
[1742826476201,0.00359416,88482.0,88481.0,0.61058]
[1742826476606,0.00359416,88482.0,88481.0,0.621881]
[1742826477149,0.00359416,88482.0,88481.0,0.61058]
[1742826477358,0.05087309,88482.0,88481.0,0.4179]
[1742826477557,0.05087309,88482.0,88481.0,1.09858]
[1742826477558,0.1632892,88482.0,88481.0,1.09858]
[1742826477761,0.1632892,88482.0,88481.0,0.5378]
[1742826478001,0.6048842,88482.0,88481.0,0.68064]
[1742826478443,0.237392,88461.0,88460.0,0.4179]
[1742826478650,0.35130065,88461.0,88460.0,0.9557]
[1742826478852,0.23704301,88461.0,88460.0,1.0985]
[1742826478993,0.35118432,88461.0,88460.0,1.0985]
[1742826479388,0.35118432,88461.0,88460.0,0.6806]
[1742826479618,0.226117,88450.0,88447.0,0.4179]
[1742826479819,0.22600067,88450.0,88448.0,0.68052]
[1742826480045,0.237421,88450.0,88448.0,0.68052]
[1742826480247,0.237412,88454.0,88448.0,0.68052]
[1742826480454,0.34036864,88453.0,88448.0,0.90664]
[1742826480990,0.34036864,88453.0,88450.0,0.226114]
[1742826480991,0.11425764,88453.0,88450.0,0.226114]
[1742826481107,0.11425764,88453.0,88451.0,0.226112]
[1742826481310,0.237392,88461.0,88455.0,0.226101]
[1742826481519,0.237408,88455.0,88448.0,0.68064332]
[1742826481732,0.011305,88455.0,88448.0,0.53792332]
[1742826481929,0.011305,88449.0,88448.0,0.53792332]
[1742826482183,0.12556264,88449.0,88448.0,0.68056332]
[1742826482392,0.11425764,88449.0,88448.0,0.68056332]
[1742826482814,0.011304,88459.0,88450.0,0.226116]
[1742826483012,0.226106,88454.0,88450.0,0.226114]
[1742826483218,0.011305,88455.0,88448.0,0.68056332]
[1742826483436,0.237422,88450.0,88448.0,0.68056332]
[1742826483646,0.226117,88450.0,88448.0,0.68056332]
[1742826483839,0.237422,88450.0,88448.0,0.68056332]
[1742826484042,0.011305,88449.0,88448.0,0.68056332]
[1742826484256,0.237422,88450.0,88448.0,0.68056332]
[1742826484445,0.12856264,88449.0,88448.0,0.53792332]
[1742826484655,0.12856264,88449.0,88448.0,0.68032332]
[1742826485262,0.1482621,88449.0,88448.0,0.68032332]
[1742826485691,0.25692431,88449.0,88448.0,0.68032332]
[1742826486327,0.1480294,88449.0,88448.0,0.68020332]
[1742826486483,0.14791305,88449.0,88448.0,0.68020332]
[1742826486689,0.147564,88449.0,88448.0,0.68020332]
[1742826487374,0.136259,88449.0,88448.0,0.53796]
[1742826487528,0.136259,88449.0,88448.0,0.764081]
[1742826487529,0.02569946,88449.0,88448.0,0.764081]
[1742826487728,0.02558312,88449.0,88448.0,0.764081]
[1742826487934,0.02535044,88449.0,88448.0,0.764081]
[1742826488158,0.003,88449.0,88448.0,0.764081]
[1742826488331,0.00265098,88449.0,88448.0,0.764081]
[1742826488550,0.00253465,88449.0,88448.0,0.917427]
[1742826488754,0.00253465,88449.0,88448.0,0.906121]
[1742826489180,0.00241832,88449.0,88448.0,0.906121]
[1742826489381,0.02222424,88457.0,88448.0,0.68]
[1742826489587,0.02222424,88457.0,88449.0,0.226119]
[1742826489788,0.02222424,88457.0,88452.0,0.226108]
[1742826490020,0.011303,88471.0,88453.0,0.429205]
[1742826490225,0.011302,88477.0,88459.0,0.237397]
[1742826490558,0.00034,88482.0,88459.0,0.75143785]
[1742826490755,0.00034,88482.0,88459.0,0.86569549]
[1742826490905,0.02288506,88482.0,88459.0,0.86569549]
[1742826491068,0.02288506,88482.0,88459.0,0.90002066]
[1742826491277,0.02288506,88482.0,88481.0,0.226037]
[1742826491480,0.02288506,88482.0,88481.0,0.6798]
[1742826491677,0.00034,88482.0,88481.0,0.6798]
[1742826491880,0.011641,88482.0,88481.0,0.6798]
[1742826492520,0.24308771,88482.0,88481.0,0.53796]
[1742826492727,0.4551109,88482.0,88481.0,0.6798]
[1742826492930,0.34604435,88482.0,88481.0,0.53792]
[1742826493127,0.35734535,88482.0,88481.0,0.53792]
[1742826493332,0.00575271,88482.0,88481.0,0.53792]
[1742826493560,0.23178671,88482.0,88481.0,0.53792]
[1742826493765,0.24308771,88482.0,88481.0,0.53792]
[1742826493966,0.24285511,88482.0,88481.0,0.53792]
[1742826494168,0.23785511,88482.0,88481.0,0.67976]
[1742826494520,0.24085511,88482.0,88481.0,0.67976]
[1742826494926,0.23785511,88482.0,88481.0,0.67976]
[1742826495130,0.24185511,88482.0,88481.0,0.67976]
[1742826495332,0.00452011,88482.0,88481.0,0.917098]
[1742826495826,0.00452011,88482.0,88481.0,0.905797]
[1742826496243,0.00452011,88482.0,88481.0,1.323697]
[1742826497093,0.226006,88493.0,88489.0,0.226016]
[1742826497322,0.02214917,88491.0,88489.0,0.226016]
[1742826497536,0.02214917,88491.0,88487.0,0.226019]
[1742826498273,0.25946117,88491.0,88487.0,0.226019]
[1742826498583,0.25946117,88491.0,88485.0,0.226026]
[1742826498584,0.22555092,88489.0,88485.0,0.226026]
[1742826498743,0.22531838,88489.0,88485.0,0.226026]
[1742826498935,0.22520211,88489.0,88486.0,0.226024]
[1742826499137,0.22520211,88489.0,88486.0,0.226023]
[1742826499365,0.0113,88490.0,88485.0,0.226026]
[1742826499600,0.25946217,88491.0,88484.0,0.226029]
[1742826499811,0.02214917,88491.0,88490.0,0.226014]
[1742826499976,0.01938887,88500.0,88496.0,0.225993]
[1742826500185,0.01938887,88500.0,88497.0,0.367036]
[1742826500362,0.00012371,88500.0,88498.0,0.225992]
[1742826500751,0.00012371,88500.0,88499.0,0.225991]
[1742826500949,0.01978683,88500.0,88497.0,0.14104]
[1742826501252,0.23694225,88499.0,88497.0,0.14104]
[1742826501598,0.2365935,88499.0,88497.0,0.14104]
[1742826501792,0.23647725,88499.0,88497.0,0.14104]
[1742826501995,0.236361,88499.0,88497.0,0.14104]
[1742826503145,0.225993,88498.0,88497.0,0.14104]
[1742826503557,0.237292,88498.0,88497.0,0.14104]
[1742826503739,0.0306511,88500.0,88481.0,0.549221]
[1742826503740,0.0110675,88489.0,88482.0,0.4179]
[1742826503939,0.22602,88488.0,88483.0,0.14048]
[1742826504245,0.226015,88490.0,88486.0,0.226022]
[1742826504468,0.0113,88494.0,88484.0,0.011301]
[1742826504673,0.226011,88492.0,88488.0,0.226018]
[1742826504891,0.226015,88490.0,88486.0,0.226019]
[1742826505085,0.226013,88491.0,88487.0,0.22602]
[1742826505317,0.225998,88497.0,88489.0,0.0113]
[1742826505523,0.225999,88496.0,88493.0,0.226006]
[1742826506045,0.011299,88496.0,88492.0,0.226008]
[1742826506470,0.225999,88496.0,88493.0,0.226006]
[1742826506646,0.225996,88497.0,88494.0,0.226003]
[1742826507336,0.3193521,88500.0,88497.0,0.225995]
[1742826507515,0.229997,88497.0,88493.0,0.226005]
[1742826507715,0.226002,88495.0,88494.0,0.14008]
[1742826508195,0.237295,88498.0,88494.0,0.366081]
[1742826508404,0.004,88497.0,88494.0,0.366082]
[1742826508603,0.229997,88497.0,88494.0,0.366082]
[1742826508812,0.004,88497.0,88496.0,0.225998]
[1742826508988,0.0037674,88497.0,88496.0,0.225998]
[1742826509392,0.2453421,88500.0,88497.0,0.225994]
[1742826509715,0.0193521,88500.0,88498.0,0.225993]
[1742826509919,0.2566391,88500.0,88488.0,0.4179]
[1742826510088,0.2566391,88500.0,88489.0,0.13976]
[1742826510282,0.2566391,88500.0,88497.0,0.225994]
[1742826510483,0.2566391,88500.0,88498.0,0.53776]
[1742826510484,0.0193521,88500.0,88498.0,0.53776]
[1742826510690,0.23729,88499.0,88498.0,0.53776]
[1742826510909,0.23729,88499.0,88498.0,0.67744]
[1742826511151,0.53729,88499.0,88498.0,0.53776]
[1742826511364,0.53729,88499.0,88483.0,0.22603]
[1742826511365,0.64024864,88499.0,88473.0,0.4179]